bitfinex/quotes_BTCUSD_20250711
["timestamp","ask_amount","ask_price","bid_price","bid_amount"]
[1752244128463,0.66917829,118010.0,118000.0,0.27164258]
[1752244128688,0.67117829,118010.0,118000.0,0.27164258]
[1752244128932,0.67965214,118010.0,118000.0,0.24622045]
[1752244130297,0.6711785,118010.0,118000.0,0.24622045]
[1752244130523,0.344,118010.0,118000.0,0.33165038]
[1752244130766,0.49318677,118010.0,118000.0,0.34859873]
[1752244130979,0.14471328,118010.0,118000.0,0.34859873]
[1752244131196,0.1531867,118010.0,118000.0,0.34859873]
[1752244131428,0.14271328,118010.0,118000.0,0.34859873]
[1752244131647,0.14071328,118010.0,118000.0,0.34859873]
[1752244131884,0.1511867,118010.0,118000.0,0.34859873]
[1752244132112,0.13424,118010.0,118000.0,0.34859873]
[1752244132327,0.15118663,118010.0,118000.0,0.34859873]
[1752244132554,0.1596602,118010.0,118000.0,0.34859873]
[1752244133001,0.0274202,118010.0,118000.0,0.34859873]
[1752244133212,0.15118663,118010.0,118000.0,0.34859873]
[1752244133432,0.15118656,118010.0,118000.0,0.34859873]
[1752244133866,0.14271321,118010.0,118000.0,0.34859873]
[1752244134276,0.01047321,118010.0,118000.0,0.34859873]
[1752244134490,0.01894663,118010.0,118000.0,0.34859873]
[1752244134703,0.13424,118010.0,118000.0,0.34859873]
[1752244134922,0.13424,118010.0,118000.0,0.84907278]
[1752244135188,0.002,118010.0,118000.0,0.84907278]
[1752244135406,0.002,118010.0,118000.0,0.34859873]
[1752244136666,0.002,118010.0,118000.0,0.00214]
[1752244136667,0.19041436,118010.0,118000.0,0.00214]
[1752244136852,1.16312841,118010.0,118000.0,4e-05]
[1752244137270,1.16625841,118010.0,118000.0,4e-05]
[1752244137694,1.19225841,118010.0,118000.0,4e-05]
[1752244139152,1.16625841,118010.0,118000.0,4e-05]
[1752244139807,1.03401841,118010.0,118000.0,4e-05]
[1752244140012,1.16621841,118010.0,118000.0,4e-05]
[1752244143552,0.52842436,118010.0,118000.0,0.03256]
[1752244143869,0.18842436,118010.0,118000.0,0.25377473]
[1752244144074,0.32909814,118010.0,118000.0,0.26224887]
[1752244144304,0.33757199,118010.0,118000.0,0.25377473]
[1752244145046,0.31414101,118010.0,118000.0,0.0557]
[1752244145159,1.15774506,118010.0,118000.0,4e-05]
[1752244149143,0.18645597,117990.0,117980.0,0.002]
[1752244149355,0.81095085,117990.0,117980.0,0.002]
[1752244149560,0.819426,117990.0,117980.0,0.0278]
[1752244149759,0.18476195,117990.0,117980.0,0.21949191]
[1752244149968,0.14745606,117990.0,117980.0,0.25556742]
[1752244150171,0.02373128,117990.0,117980.0,0.25556742]
[1752244150382,0.02542278,118000.0,117990.0,0.24863076]
[1752244150586,0.3271143,118000.0,117990.0,0.33928076]
[1752244151349,0.3271143,118000.0,117990.0,0.32233097]
[1752244152052,0.3281143,118000.0,117990.0,0.32233097]
[1752244152463,0.3301143,118000.0,117990.0,0.32233097]
[1752244153670,0.32164023,118000.0,117990.0,0.32233097]
[1752244155130,0.31316595,118000.0,117990.0,0.31385582]
[1752244155350,0.31316595,118000.0,117990.0,0.32233104]
[1752244155495,0.31316595,118000.0,117990.0,0.33080619]
[1752244155946,0.01147421,118000.0,117990.0,0.34775591]
[1752244156164,0.01994814,118000.0,117990.0,0.34775591]
[1752244156367,0.16905657,118000.0,117990.0,0.34775591]
[1752244156592,0.17753114,118000.0,117990.0,0.34775591]
[1752244156799,0.177531,118000.0,117990.0,0.34775591]
[1752244157640,0.16905657,118000.0,117990.0,0.34775591]
[1752244157845,0.16058221,118000.0,117990.0,0.34775591]
[1752244158091,0.16905657,118000.0,117990.0,0.34775591]
[1752244158420,0.1775315,118000.0,117990.0,0.34775591]
[1752244159112,0.169057,118000.0,117990.0,0.34775591]
[1752244159819,0.17753157,118000.0,117990.0,0.34775591]
[1752244160011,0.169057,118000.0,117990.0,0.34775591]
[1752244160549,0.003,118000.0,117990.0,0.34775591]
[1752244160786,0.00024186,118000.0,117990.0,0.34775591]
[1752244160988,0.00024186,118000.0,117990.0,0.49445676]
[1752244161159,0.17452768,118010.0,118000.0,0.1864403]
[1752244161474,0.17793573,118020.0,118010.0,0.16947716]
[1752244161718,0.31856887,118020.0,118010.0,0.05846]
[1752244161881,0.31856887,118020.0,118010.0,0.22793716]
[1752244162077,0.31856887,118020.0,118010.0,0.23641101]
[1752244162283,0.31856887,118020.0,118010.0,0.25335843]
[1752244162673,0.31856887,118020.0,118010.0,0.24488479]
[1752244162879,0.18640887,118020.0,118010.0,0.24488479]
[1752244163100,0.31852887,118020.0,118010.0,0.24488479]
[1752244163483,0.31207595,118020.0,118010.0,0.02894]
[1752244163681,0.31207595,118020.0,118010.0,0.20689101]
[1752244163905,0.31407595,118020.0,118010.0,0.02894]
[1752244164283,0.31407595,118020.0,118010.0,0.03741385]
[1752244164709,0.31407595,118020.0,118010.0,0.02894]
[1752244164932,0.31407595,118020.0,118010.0,0.0268]
[1752244165134,0.31407595,118020.0,118000.0,0.29787038]
[1752244165135,0.18642451,118010.0,118000.0,0.29787038]
[1752244165337,0.69739205,118010.0,118000.0,0.30001038]
[1752244165679,0.69739205,118010.0,118000.0,0.31695887]
[1752244165886,0.03591462,118010.0,118000.0,0.32543294]
[1752244166089,0.02744084,118010.0,118000.0,0.32543294]
[1752244166292,0.20539178,118010.0,118000.0,0.32543294]
[1752244166726,0.01694993,117990.0,117980.0,0.17453312]
[1752244166932,0.81905016,117990.0,117980.0,0.12836587]
[1752244167136,0.81259509,117990.0,117980.0,0.03144]
[1752244167363,0.80411994,117990.0,117980.0,0.03144]
[1752244168019,0.31214633,117990.0,117980.0,0.2179122]
[1752244168234,0.31214633,117990.0,117980.0,0.23486385]
[1752244168451,0.31214633,117990.0,117980.0,0.002]
[1752244168665,1.20827038,117990.0,117980.0,0.002]
[1752244168880,1.20827038,117990.0,117980.0,0.003]
[1752244169308,1.20827038,117990.0,117980.0,0.002]
[1752244169929,1.20827038,117990.0,117980.0,0.00204]
[1752244170384,0.65214633,117990.0,117980.0,0.00204]
[1752244170605,0.65214633,117990.0,117980.0,0.02774]
[1752244170828,0.65214633,117990.0,117980.0,0.02974]
[1752244171239,0.65214633,117990.0,117980.0,0.04035601]
[1752244171901,0.48062044,117990.0,117980.0,0.23832343]
[1752244172108,0.50604515,117990.0,117980.0,0.26492343]
[1752244172294,0.68402619,117990.0,117980.0,0.25644792]
[1752244172520,0.71004352,117990.0,117980.0,0.26492357]
[1752244172670,0.71004352,117990.0,117980.0,0.25644792]
[1752244172871,0.69309388,117990.0,117980.0,0.2479722]
[1752244173080,0.68461881,117990.0,117980.0,0.0615]
[1752244173340,0.66062148,117990.0,117980.0,0.02974]
[1752244175630,1.16109553,117990.0,117980.0,0.02974]
[1752244177468,0.66062148,117990.0,117980.0,0.02974]
[1752244177869,0.66062148,117990.0,117980.0,0.00404]
[1752244178069,1.21784553,117990.0,117980.0,0.00404]
[1752244179464,1.22184553,117990.0,117980.0,0.00204]
[1752244180081,1.21784553,117990.0,117980.0,0.00204]
[1752244180497,0.66358148,117990.0,117980.0,0.00204]
[1752244180976,0.66758148,117990.0,117980.0,0.00204]
[1752244181178,1.17100553,117990.0,117980.0,0.00204]
[1752244182421,1.16800553,117990.0,117980.0,0.00204]
[1752244182623,1.03792553,117990.0,117980.0,0.00204]
[1752244182791,1.17000553,117990.0,117980.0,0.00204]
[1752244183004,1.16400553,117990.0,117980.0,0.00204]
[1752244183532,1.03492553,117990.0,117980.0,0.00204]
[1752244183741,1.16405553,117990.0,117980.0,0.03098]
[1752244183941,0.66358148,117990.0,117980.0,0.03098]
[1752244184377,0.66658148,117990.0,117980.0,0.03098]
[1752244184816,0.66358148,117990.0,117980.0,0.03098]
[1752244184937,0.66458148,117990.0,117980.0,0.03098]
[1752244185338,0.52748148,117990.0,117980.0,0.034]
[1752244185542,0.65956148,117990.0,117980.0,0.23699619]
[1752244185770,0.66156148,117990.0,117980.0,0.059]
[1752244186208,0.66358148,117990.0,117980.0,0.059]
[1752244186789,0.66358148,117990.0,117980.0,0.05598]
[1752244187006,0.66358148,117990.0,117980.0,0.02884]
[1752244187896,1.16405553,117990.0,117980.0,0.02884]
[1752244189073,1.16698553,117990.0,117980.0,0.00204]
[1752244189480,1.19238553,117990.0,117980.0,0.00204]
[1752244189899,1.21588553,117990.0,117980.0,0.00204]
[1752244190125,0.71541148,117990.0,117980.0,0.00204]
[1752244190431,1.21588553,117990.0,117980.0,0.00204]
[1752244190869,6.30131546,117990.0,117980.0,0.00204]
[1752244191039,0.18648757,117970.0,117960.0,0.002]
[1752244191259,0.82117162,117970.0,117960.0,0.00214975]
[1752244191652,0.82410162,117970.0,117960.0,0.00214975]
[1752244192029,0.84996161,117970.0,117960.0,0.00214975]
[1752244192663,0.84996161,117970.0,117960.0,0.00414975]
[1752244194665,0.82410162,117970.0,117960.0,0.00414975]
[1752244195102,1.24953155,117970.0,117960.0,0.00414975]
[1752244195303,1.16410162,117970.0,117960.0,0.00414975]
[1752244197773,1.18820162,117970.0,117960.0,0.00414975]
[1752244198823,6.27463155,117970.0,117960.0,0.00414975]
[1752244199028,6.29833155,117970.0,117960.0,0.00214975]
[1752244199239,6.32240392,117970.0,117960.0,0.00214975]
[1752244199455,0.55181919,117950.0,117940.0,0.002]
[1752244199692,1.18646324,117950.0,117940.0,0.002]
[1752244200105,1.18939324,117950.0,117940.0,0.002]
[1752244200765,0.52864919,117950.0,117940.0,0.002]
[1752244200995,0.66068919,117950.0,117940.0,0.02784]
[1752244201206,0.66155919,117950.0,117940.0,0.23416656]
[1752244201443,0.66155919,117950.0,117940.0,0.25112397]
[1752244201652,0.65308139,117950.0,117940.0,0.05611]
[1752244201870,0.65508139,117950.0,117940.0,0.05611]
[1752244202073,0.65208139,117950.0,117940.0,0.05611]
[1752244202312,1.24404537,117950.0,117940.0,0.002]
[1752244202533,1.24204537,117950.0,117940.0,0.002]
[1752244203424,1.15661544,117950.0,117940.0,0.002]
[1752244203669,1.15268544,117950.0,117940.0,0.002]
[1752244203884,1.15561544,117950.0,117940.0,0.002]
[1752244204106,1.24104537,117950.0,117940.0,0.002]
[1752244204526,1.24404537,117950.0,117940.0,0.002]
[1752244204738,1.16061544,117950.0,117940.0,0.002]
[1752244205157,0.52810139,117950.0,117940.0,0.002]
[1752244205387,1.15768544,117950.0,117940.0,0.0259]
[1752244205816,1.16061544,117950.0,117940.0,0.002]
[1752244206020,1.02857544,117950.0,117940.0,0.002]
[1752244206276,1.16061544,117950.0,117940.0,0.002]
[1752244207118,6.77181942,117950.0,117940.0,0.002]
[1752244207318,6.82125874,117950.0,117940.0,0.002]
[1752244207738,1.02702488,117930.0,117920.0,0.0254]
[1752244207950,1.16119488,117930.0,117920.0,0.0254]
[1752244209025,6.38472406,117930.0,117920.0,0.00212702]
[1752244209262,6.38472406,117930.0,117900.0,0.10004]
[1752244209263,0.52658247,117910.0,117900.0,0.10004]
[1752244209475,6.29639577,117910.0,117900.0,0.10004]
[1752244209690,6.32009577,117910.0,117900.0,0.10053944]
[1752244209906,6.32302577,117910.0,117900.0,0.10053944]
[1752244210139,6.32302577,117910.0,117900.0,0.09206066]
[1752244210140,6.91732269,117910.0,117900.0,0.09206066]
[1752244210353,6.94090918,117910.0,117900.0,0.09206066]
[1752244210570,0.1781169,117900.0,117890.0,0.0004]
[1752244210779,6.78969493,117900.0,117890.0,0.0004]
[1752244210991,6.06894537,117890.0,117880.0,0.00248]
[1752244211213,6.2885453,117890.0,117880.0,0.00252994]
[1752244211479,6.31506179,117890.0,117880.0,0.00252994]
[1752244211697,6.34051879,117890.0,117880.0,0.00252994]
[1752244212131,6.3169323,117890.0,117880.0,0.00252994]
[1752244212343,6.33301551,117890.0,117880.0,0.00252994]
[1752244212805,5.65981825,117890.0,117880.0,0.00252994]
[1752244213022,6.34352823,117890.0,117880.0,0.00252994]
[1752244213661,6.31792823,117890.0,117880.0,0.00252994]
[1752244213873,5.54585793,117890.0,117880.0,0.00252994]
[1752244214097,0.650172,117890.0,117880.0,0.05653994]
[1752244214305,0.518132,117890.0,117880.0,0.05853994]
[1752244214514,0.650172,117890.0,117880.0,0.05853994]
[1752244214734,1.23820598,117890.0,117880.0,0.02802994]
[1752244214951,1.32656591,117890.0,117880.0,0.00452994]
[1752244215160,1.19452591,117890.0,117880.0,0.00452994]
[1752244215377,1.32660591,117890.0,117880.0,0.00452994]
[1752244215804,6.24117598,117890.0,117880.0,0.00452994]
[1752244216211,6.29193859,117890.0,117880.0,0.00452994]
[1752244217274,6.34032508,117890.0,117880.0,0.00452994]
[1752244217480,6.31530179,117890.0,117880.0,0.00452994]
[1752244217627,6.2917153,117890.0,117880.0,0.00452994]
[1752244217836,6.2669153,117890.0,117880.0,0.00452994]
[1752244218057,6.24117598,117890.0,117880.0,0.00452994]
[1752244218277,5.60569193,117890.0,117880.0,0.03180994]
[1752244218518,5.652342,117890.0,117880.0,0.03180994]
[1752244218659,0.652342,117890.0,117880.0,0.05670994]
[1752244218863,5.652342,117890.0,117880.0,0.05670994]
[1752244219290,5.518132,117890.0,117880.0,0.05978994]
[1752244219488,5.650212,117890.0,117880.0,0.05978994]
[1752244220100,0.650212,117890.0,117880.0,0.05978994]
[1752244220372,1.23571423,117890.0,117880.0,0.02972994]
[1752244220693,0.655622,117890.0,117880.0,0.00452994]
[1752244220904,1.15284605,117890.0,117880.0,0.02842994]
[1752244221107,1.17780061,117890.0,117880.0,0.02842994]
[1752244221871,0.67732656,117890.0,117880.0,0.02842994]
[1752244222077,0.67516656,117890.0,117880.0,0.03358994]
[1752244222276,1.17780061,117890.0,117880.0,0.00452994]
[1752244222488,6.26648054,117890.0,117880.0,0.00452994]
[1752244222897,6.27486382,117890.0,117880.0,0.00452994]
[1752244223111,0.18664578,117870.0,117860.0,0.00244]
[1752244223332,0.14056334,117870.0,117860.0,0.23758191]
[1752244223551,0.14904675,117870.0,117860.0,0.34306032]
[1752244223752,0.5266301,117880.0,117870.0,0.18664578]
[1752244223963,0.6671933,117880.0,117870.0,0.24788927]
[1752244224169,0.6587101,117880.0,117870.0,0.23092222]
[1752244224371,0.49752844,117880.0,117870.0,0.23940585]
[1752244224584,0.66719286,117880.0,117870.0,0.2309223]
[1752244224829,0.65871009,117880.0,117870.0,0.05276]
[1752244225234,0.52663009,117880.0,117870.0,0.05276]
[1752244225589,0.65871009,117880.0,117870.0,0.05276]
[1752244227652,1.16134414,117880.0,117870.0,0.04968]
[1752244227816,0.17816222,117870.0,117860.0,0.02922]
[1752244228017,0.81287627,117870.0,117860.0,0.02614]
[1752244228235,0.18032222,117870.0,117860.0,0.02822]
[1752244228594,0.31872564,117870.0,117860.0,0.19426191]
[1752244228792,0.02545046,117870.0,117860.0,0.21123039]
[1752244228907,0.49749046,117870.0,117860.0,0.25753039]
[1752244229109,0.03393431,117870.0,117860.0,0.25853039]
[1752244229318,0.14900676,117870.0,117860.0,0.25853039]
[1752244229527,0.33565254,117870.0,117860.0,0.25004626]
[1752244229752,0.32716927,117870.0,117860.0,0.25004626]
[1752244229998,0.32716927,117870.0,117860.0,0.26053054]
[1752244230204,0.14900705,117870.0,117860.0,0.26901467]
[1752244230399,0.34838328,117890.0,117880.0,0.2359301]
[1752244230640,0.34838328,117890.0,117880.0,0.24957228]
[1752244230641,0.00848183,117890.0,117880.0,0.24957228]
[1752244230842,0.1490433,117900.0,117890.0,0.19509625]
[1752244231050,0.1490433,117900.0,117890.0,0.24765625]
[1752244231051,0.15752435,117900.0,117890.0,0.24765625]
[1752244231256,0.15752384,117900.0,117890.0,0.24765625]
[1752244231452,0.15752391,117900.0,117890.0,0.24765625]
[1752244231669,0.34412249,117900.0,117890.0,0.24765625]
[1752244231901,0.15752391,117900.0,117890.0,0.25613837]
[1752244232110,0.1660056,117900.0,117890.0,0.25613837]
[1752244232311,0.15752391,117900.0,117890.0,0.25613837]
[1752244232528,0.01696244,117900.0,117890.0,0.25613837]
[1752244232732,0.01696244,117900.0,117890.0,0.23069208]
[1752244232733,0.20856088,117900.0,117890.0,0.23069208]
[1752244232936,0.19159844,117900.0,117890.0,0.22220967]
[1752244233156,0.19159844,117900.0,117890.0,0.23917456]
[1752244233359,0.19159844,117900.0,117890.0,0.05256]
[1752244233561,0.18659844,117900.0,117890.0,0.23069208]
[1752244233909,0.18759844,117900.0,117890.0,0.23917441]
[1752244234311,0.00948126,117900.0,117890.0,0.25613844]
[1752244234534,0.02644413,117900.0,117890.0,0.25613844]
[1752244234735,0.02744413,117900.0,117890.0,0.25613844]
[1752244234934,0.03592575,117900.0,117890.0,0.25613844]
[1752244235383,0.20556153,117900.0,117890.0,0.2476566]
[1752244235590,0.20556153,117900.0,117890.0,0.25613872]
[1752244235794,0.1970802,117900.0,117890.0,0.2476566]
[1752244235990,0.18859866,117900.0,117890.0,0.2476566]
[1752244236192,0.18859866,117900.0,117890.0,0.25613865]
[1752244236432,0.18859866,117900.0,117890.0,0.2476566]
[1752244237397,0.18859866,117900.0,117890.0,0.25613858]
[1752244237986,0.18859866,117900.0,117890.0,0.52049858]
[1752244239262,0.002,117900.0,117890.0,0.60592851]
[1752244240270,0.001,117900.0,117890.0,0.60592851]
[1752244240651,0.001,117900.0,117890.0,0.60692851]
[1752244240856,0.04440325,117910.0,117900.0,0.1950797]
[1752244241065,0.04440325,117910.0,117900.0,0.34155103]
[1752244241066,0.01911073,117910.0,117900.0,0.34155103]
[1752244241267,0.02759155,117910.0,117900.0,0.34155103]
[1752244241471,0.01063005,117910.0,117900.0,0.34155103]
[1752244241687,0.02759134,117910.0,117900.0,0.34155103]
[1752244241897,0.01911059,117910.0,117900.0,0.34155103]
[1752244242131,0.03607217,117910.0,117900.0,0.34155103]
[1752244242341,0.01063005,117910.0,117900.0,0.34155103]
[1752244242550,0.00214959,117910.0,117900.0,0.34155103]
[1752244243810,0.00214959,117910.0,117900.0,0.34255103]
[1752244244229,0.00214959,117910.0,117900.0,0.34155103]
[1752244244652,0.01062998,117910.0,117900.0,0.34355103]
[1752244244866,0.00214959,117910.0,117900.0,0.34355103]
[1752244245070,0.01063005,117910.0,117900.0,0.34455103]
[1752244245344,0.01911059,117910.0,117900.0,0.34455103]
[1752244245545,0.02759127,117910.0,117900.0,0.34455103]
[1752244245762,0.1972126,117910.0,117900.0,0.14098993]
[1752244245974,0.69136611,117910.0,117900.0,0.02828]
[1752244246171,0.69136611,117910.0,117900.0,0.003]
[1752244246870,0.33793407,117910.0,117900.0,0.25378991]
[1752244247100,0.33793407,117910.0,117900.0,0.26227117]
[1752244247315,0.33793407,117910.0,117900.0,0.24330858]
[1752244247650,0.32945339,117910.0,117900.0,0.05571]
[1752244247867,0.31453152,117910.0,117900.0,0.05571]
[1752244248106,0.31453152,117910.0,117900.0,0.05268]
[1752244248274,0.31553152,117910.0,117900.0,0.05268]
[1752244248796,0.31553152,117910.0,117900.0,0.05368]
[1752244248964,0.31453152,117910.0,117900.0,0.22331528]
[1752244249163,0.31453152,117910.0,117900.0,0.24027859]
[1752244249839,0.31453152,117910.0,117900.0,0.23179697]
[1752244250077,0.30605048,117910.0,117900.0,0.02848]
[1752244250490,0.64921048,117910.0,117900.0,0.001]
[1752244250693,1.14976453,117910.0,117900.0,0.001]
[1752244250819,1.19666453,117910.0,117900.0,0.001]
[1752244251230,0.18661441,117890.0,117880.0,0.15975]
[1752244251504,0.32097441,117890.0,117880.0,0.0244]
[1752244251663,0.17814726,117880.0,117870.0,0.2288923]
[1752244251834,0.17814726,117880.0,117870.0,0.2308623]
[1752244252047,0.17814726,117880.0,117870.0,0.23934607]
[1752244252254,0.18663024,117880.0,117870.0,0.23934607]
[1752244252663,0.18663024,117880.0,117870.0,0.22237845]
[1752244252859,0.18018726,117880.0,117870.0,0.05067]
[1752244253161,0.18018726,117880.0,117870.0,0.02737]
[1752244254164,0.18018726,117880.0,117870.0,0.0254]
[1752244254895,0.68066131,117880.0,117870.0,0.001]
[1752244255100,0.68382131,117880.0,117870.0,0.001]
[1752244256753,1.02382131,117880.0,117870.0,0.001]
[1752244257678,0.1781623,117870.0,117860.0,0.16969238]
[1752244257802,0.3103623,117870.0,117860.0,0.02677]
[1752244258014,0.3124023,117870.0,117860.0,0.20494749]
[1752244258642,0.3104023,117870.0,117860.0,0.24176191]
[1752244259040,0.52663031,117880.0,117870.0,0.22886222]
[1752244259280,0.66735315,117880.0,117870.0,0.24234607]
[1752244259582,0.65038726,117880.0,117870.0,0.2338623]
[1752244260827,0.65038726,117880.0,117870.0,0.0557]
[1752244260828,0.64190406,117880.0,117870.0,0.0557]
[1752244261039,0.17817519,117870.0,117860.0,0.0229]
[1752244261155,0.18021519,117870.0,117860.0,0.19456285]
[1752244261343,0.18021519,117870.0,117860.0,0.20304734]
[1752244261548,0.19514274,117870.0,117860.0,0.23746162]
[1752244261776,0.32734274,117870.0,117860.0,0.23746162]
[1752244262213,0.5096654,117880.0,117870.0,0.19447845]
[1752244262413,0.65034845,117880.0,117870.0,0.0484]
[1752244262646,0.65238845,117880.0,117870.0,0.0248]
[1752244262937,0.17816222,117870.0,117860.0,0.16233]
[1752244263149,0.18020222,117870.0,117860.0,0.16027]
[1752244263406,0.18020222,117870.0,117860.0,0.19979285]
[1752244263625,0.18020222,117870.0,117860.0,0.24914575]
[1752244263626,0.01696719,117870.0,117860.0,0.24914575]
[1752244263837,0.01696719,117870.0,117860.0,0.054]
[1752244263838,0.19512956,117870.0,117860.0,0.054]
[1752244264045,0.18664607,117870.0,117860.0,0.054]
[1752244264179,0.18868607,117870.0,117860.0,0.054]
[1752244264379,0.18868607,117870.0,117860.0,0.22369285]
[1752244264576,0.18868607,117870.0,117860.0,0.24066191]
[1752244264577,0.18664607,117870.0,117860.0,0.24066191]
[1752244265225,0.18664607,117870.0,117860.0,0.24914626]
[1752244265422,0.18664607,117870.0,117860.0,0.25014626]
[1752244266216,0.18664607,117870.0,117860.0,0.23317749]
[1752244266386,0.18020237,117870.0,117860.0,0.23317749]
[1752244266590,0.18020237,117870.0,117860.0,0.25014648]
[1752244266833,0.17816237,117870.0,117860.0,0.25014648]
[1752244267583,0.17816237,117870.0,117860.0,0.25214648]
[1752244267821,0.17816237,117870.0,117860.0,0.26063083]
[1752244268212,0.18664607,117870.0,117860.0,0.26911504]
[1752244268539,0.18664607,117870.0,117860.0,0.26063083]
[1752244268875,0.18664607,117870.0,117860.0,0.26911511]
[1752244269287,0.18664607,117870.0,117860.0,0.23517749]
[1752244270097,0.18868607,117870.0,117860.0,0.0281]
[1752244270315,0.19184607,117870.0,117860.0,0.003]
[1752244270526,0.18868564,117870.0,117860.0,0.20734742]
[1752244270767,0.01696719,117870.0,117860.0,0.22734619]
[1752244270971,0.53511308,117880.0,117870.0,0.210846]
[1752244271174,0.66719308,117880.0,117870.0,0.0542]
[1752244271385,0.00848349,117870.0,117860.0,0.17777496]
[1752244271579,0.00848349,117870.0,117860.0,0.17974496]
[1752244271819,0.18664571,117870.0,117860.0,0.16277713]
[1752244272025,0.18020222,117870.0,117860.0,0.00197]
[1752244272197,0.1866617,117860.0,117850.0,0.32724165]
[1752244272366,0.01696863,117860.0,117850.0,0.41479129]
[1752244272783,0.02545327,117860.0,117850.0,0.41479129]
[1752244273190,0.18132237,117870.0,117860.0,0.19514612]
[1752244273415,0.18664607,117870.0,117860.0,0.18863191]
[1752244273621,0.18868607,117870.0,117860.0,0.18014749]
[1752244273810,0.01696719,117870.0,117860.0,0.18863206]
[1752244274031,0.17814808,117880.0,117870.0,0.18664607]
[1752244274234,0.00848262,117880.0,117870.0,0.20558311]
[1752244274440,0.66069427,117890.0,117880.0,0.19476406]
[1752244274687,0.66917675,117890.0,117880.0,0.20521726]
[1752244275007,0.65741215,117890.0,117880.0,0.0251]
[1752244276196,0.17814726,117880.0,117870.0,0.45265607]
[1752244276395,0.01696603,117880.0,117870.0,0.47159311]
[1752244276609,0.01696546,117880.0,117870.0,0.47159253]
[1752244276838,0.00848262,117880.0,117870.0,0.47159253]
[1752244276994,0.66169427,117890.0,117880.0,0.21871301]
[1752244277201,0.33017581,117890.0,117880.0,0.2521657]
[1752244277395,0.33865829,117890.0,117880.0,0.24368301]
[1752244277655,0.15204388,117890.0,117880.0,0.2521657]
[1752244277849,0.01996381,117890.0,117880.0,0.33759563]
[1752244278052,0.162526,117890.0,117880.0,0.34157563]
[1752244278252,0.15404381,117890.0,117880.0,0.34157563]
[1752244278706,0.005,117890.0,117880.0,0.34157563]
[1752244278910,0.0104819,117890.0,117880.0,0.34057563]
[1752244279115,0.02744621,117890.0,117880.0,0.32911294]
[1752244279320,0.03790862,117890.0,117880.0,0.31459577]
[1752244279624,0.20755829,117890.0,117880.0,0.30611308]
[1752244279845,0.00848277,117880.0,117870.0,0.35989261]
[1752244279987,0.01696539,117880.0,117870.0,0.43899877]
[1752244280389,0.01696539,117880.0,117870.0,0.46419877]
[1752244280982,0.0254483,117880.0,117870.0,0.46419877]
[1752244281178,0.03393078,117880.0,117870.0,0.46419877]
[1752244281386,0.01896431,117890.0,117880.0,0.21811279]
[1752244281749,0.04441096,117890.0,117880.0,0.22027279]
[1752244281947,0.03592848,117890.0,117880.0,0.22027279]
[1752244282507,0.01896403,117890.0,117880.0,0.22027279]
[1752244282723,0.002,117890.0,117880.0,0.30570272]
[1752244282950,0.002,117890.0,117880.0,0.33288272]
[1752244284270,0.002,117890.0,117880.0,0.84789762]
[1752244285767,0.003,117890.0,117880.0,0.84789762]
[1752244285967,0.003,117890.0,117880.0,0.84989762]
[1752244286396,0.003,117890.0,117880.0,0.84789762]
[1752244286609,0.002,117890.0,117880.0,0.84789762]
[1752244286824,0.003,117890.0,117880.0,0.85289762]
[1752244287233,0.002,117890.0,117880.0,0.85089762]
[1752244287680,0.002,117890.0,117880.0,0.85928587]
[1752244288484,0.003,117890.0,117880.0,0.86228587]
[1752244290502,0.003,117890.0,117880.0,0.36181182]
[1752244290712,0.003,117890.0,117880.0,0.86228587]
[1752244293393,0.002,117910.0,117880.0,0.83683714]
[1752244293609,1e-08,117910.0,117900.0,1.34399858]
[1752244293829,1e-08,117910.0,117900.0,1.68615858]
[1752244294224,1e-08,117910.0,117900.0,1.68913858]
[1752244294922,0.0001496,117910.0,117900.0,1.68913858]
[1752244295187,0.0001496,117910.0,117900.0,1.32094453]
[1752244295373,0.0001496,117910.0,117900.0,1.18866453]
[1752244295655,0.0001496,117910.0,117900.0,1.32090453]
[1752244296475,0.0001496,117910.0,117900.0,1.32490453]
[1752244296963,1e-08,117910.0,117900.0,1.82537858]
[1752244297401,1e-08,117910.0,117900.0,1.32490453]
[1752244297614,1e-08,117910.0,117900.0,0.82443048]
[1752244297852,1e-08,117910.0,117900.0,1.32490453]
[1752244298240,1e-08,117910.0,117900.0,1.32790453]
[1752244298911,1e-08,117910.0,117900.0,1.82837858]
[1752244301285,0.1,117930.0,117920.0,0.20958746]
[1752244301561,0.002,117950.0,117940.0,0.24361354]
[1752244301716,0.00249938,117950.0,117940.0,1.09607752]
[1752244301885,0.00249938,117950.0,117940.0,0.59564347]
[1752244302085,0.00249938,117950.0,117940.0,0.61018432]
[1752244302283,0.00249938,117950.0,117940.0,1.11363837]
[1752244303278,0.00249938,117950.0,117940.0,1.11563837]
[1752244304278,0.00249938,117950.0,117940.0,0.61516432]
[1752244304620,0.00249938,117950.0,117940.0,1.11663837]
[1752244305887,0.00249938,117950.0,117940.0,0.61616432]
[1752244306096,0.00249938,117950.0,117940.0,1.11365837]
[1752244306568,0.00750938,117950.0,117940.0,0.54804347]
[1752244306776,0.03110938,117950.0,117940.0,0.54804347]
[1752244307165,0.00750938,117950.0,117940.0,0.54804347]
[1752244307998,0.00447938,117950.0,117940.0,0.55017347]
[1752244308860,0.00249938,117950.0,117940.0,1.05064752]
[1752244309085,0.00249938,117950.0,117940.0,1.11779837]
[1752244309513,0.00249938,117950.0,117940.0,1.11458837]
[1752244310812,0.00249938,117950.0,117940.0,1.11779837]
[1752244311946,0.00770938,117950.0,117940.0,1.08854837]
[1752244312249,0.00770938,117950.0,117940.0,1.06474837]
[1752244312479,0.00770938,117950.0,117940.0,0.56427432]
[1752244312627,0.00770938,117950.0,117940.0,0.56214432]
[1752244313241,0.03320938,117950.0,117940.0,0.54760347]
[1752244314843,0.05016477,117950.0,117940.0,0.54760347]
[1752244315046,0.04168704,117950.0,117940.0,0.54760347]
[1752244315273,0.2515063,117950.0,117940.0,0.53064649]
[1752244315445,0.2515063,117950.0,117940.0,0.44521649]
[1752244315657,0.08194293,117950.0,117940.0,0.46217347]
[1752244315847,0.03320938,117950.0,117940.0,0.5476034]
[1752244316088,0.00249938,117950.0,117940.0,1.0886483]
[1752244318736,0.00249938,117950.0,117940.0,1.1171583]
[1752244319766,0.012637,117960.0,117940.0,1.1171583]
[1752244319767,0.012637,117960.0,117950.0,0.74387105]
[1752244320111,1e-08,117960.0,117950.0,1.95393588]
[1752244320326,0.002,117970.0,117960.0,0.54952131]
[1752244320327,1e-08,117970.0,117960.0,0.54952131]
[1752244320543,1e-08,117970.0,117960.0,1.45039529]
[1752244320766,1e-08,117970.0,117960.0,1.11360529]
[1752244321399,0.002,117990.0,117980.0,0.20948827]
[1752244321611,0.002,117990.0,117980.0,1.08646225]
[1752244321821,0.002,117990.0,117980.0,1.11136225]